fUSD/lending_fUSD_20260702
["ID","MTS","AMOUNT","RATE_DAILY","PERIOD"]
[426883248,1782979016000,-500.0,0.00014996,2]
[426883259,1782979016000,-500.0,0.00014996,2]
[426883268,1782979016000,-1653.17417683,0.00014996,2]
[426883266,1782979016000,-1615.24731381,0.00014996,2]
[426883267,1782979016000,-1653.17417683,0.00014996,2]
[426883269,1782979016000,-78.40433253,0.00014996,2]
[426883265,1782979016000,-37.92686302,0.00014996,2]
[426883258,1782979016000,-500.0,0.00014996,2]
[426883264,1782979016000,-1653.17417683,0.00014996,2]
[426883261,1782979016000,-2.55060649,0.00014996,2]
[426883262,1782979016000,-1653.17417683,0.00014996,2]
[426883260,1782979016000,-497.44939351,0.00014996,2]
[426883257,1782979016000,-500.0,0.00014996,2]
[426883263,1782979016000,-1653.17417683,0.00014996,2]
[426883270,1782979017000,-1574.7698443,0.00014996,2]
[426883272,1782979017000,-1653.17417683,0.00014996,2]
[426883271,1782979017000,-1653.17417683,0.00014996,2]
[426883273,1782979017000,-118.88180204,0.00014996,2]
[426883275,1782979017000,-1653.17417683,0.00014996,2]
[426883274,1782979017000,-1534.29237479,0.00014996,2]
[426883276,1782979017000,-1653.17417683,0.00014996,2]
[426883277,1782979017000,-159.35927155,0.00014996,2]
[426883278,1782979017000,-1493.81490528,0.00014996,2]
[426883279,1782979017000,-1653.17417683,0.00014996,2]
[426883280,1782979017000,-1653.17417683,0.00014996,2]
[426883281,1782979017000,-199.83674106,0.00014996,2]
[426883282,1782979018000,-1453.33743577,0.00014996,2]
[426883283,1782979018000,-1653.17417683,0.00014996,2]
[426883284,1782979018000,-1653.17417683,0.00014996,2]
[426883286,1782979018000,-1412.85996626,0.00014996,2]
[426883287,1782979018000,-1653.17417683,0.00014996,2]
[426883285,1782979018000,-240.31421057,0.00014996,2]
[426883289,1782979018000,-280.79168008,0.00014996,2]
[426883288,1782979018000,-1653.17417683,0.00014996,2]
[426883290,1782979018000,-1372.38249675,0.00014996,2]
[426883291,1782979018000,-1653.17417683,0.00014996,2]
[426883292,1782979018000,-1653.17417683,0.00014996,2]
[426883293,1782979018000,-321.26914959,0.00014996,2]
[426883294,1782979019000,-1331.90502724,0.00014996,2]
[426883295,1782979019000,-1653.17417683,0.00014996,2]
[426883296,1782979019000,-1653.17417683,0.00014996,2]
[426883297,1782979019000,-361.7466191,0.00014996,2]
[426883298,1782979019000,-1291.42755773,0.00014996,2]
[426883305,1782979019000,-442.70155812,0.00014999,2]
[426883299,1782979019000,-1653.17417683,0.00014996,2]
[426883301,1782979019000,-402.22408861,0.00014996,2]
[426883303,1782979019000,-1653.17417683,0.00014996,2]
[426883302,1782979019000,-1250.95008822,0.00014996,2]
[426883304,1782979019000,-1653.17417683,0.00014996,2]
[426883300,1782979019000,-1653.17417683,0.00014996,2]
[426883306,1782979020000,-120.54844188,0.00014999,2]
[426883310,1782979032000,-563.25,0.00015749,2]
[426883309,1782979032000,-250.0,0.00015674,2]
[426883307,1782979032000,-160.0,0.00015143,2]
[426883308,1782979032000,-563.25,0.00015374,2]
[426883316,1782979045000,-3259.97926237,0.00019294,2]
[426883315,1782979045000,-151.0,0.0001806,2]
[426883313,1782979045000,-439.02073763,0.00016438,2]
[426883312,1782979045000,-500.0,0.00016438,2]
[426883311,1782979045000,-500.0,0.00016438,2]
[426883314,1782979045000,-150.0,0.00017645,2]
[426883317,1782979046000,-751.57676607,0.00019294,2]
[426883319,1782979047000,-171.28812351,0.00019712,2]
[426883318,1782979047000,-199.5,0.000197,2]
[426883320,1782979056000,500.0,0.00027598,120]
[426883321,1782979087000,500.0,0.00027598,120]
[426883322,1782979099000,656.0,0.00024658,120]
[426883323,1782979102000,18363.14778119,0.0002759,120]
[426883324,1782979160000,360.94,0.00014249,2]
[426883325,1782979168000,4244.67903847,0.00037098,120]
[426883327,1782979272000,150.0,0.00022698,120]
[426883330,1782979407000,1035.84,0.00037097,120]
[426883329,1782979407000,1035.84,0.00037097,120]
[426883333,1782979408000,1035.84,0.00037097,120]
[426883332,1782979408000,1035.84,0.00037097,120]
[426883331,1782979408000,1035.84,0.00037097,120]
[426883336,1782979409000,1035.84,0.00037097,120]
[426883335,1782979409000,1035.84,0.00037097,120]
[426883334,1782979409000,1035.84,0.00037097,120]
[426883340,1782979410000,1035.84,0.00037097,120]
[426883339,1782979410000,1035.84,0.00037097,120]
[426883337,1782979410000,1035.84,0.00037097,120]
[426883343,1782979411000,1035.84,0.00037097,120]
[426883342,1782979411000,1035.84,0.00037097,120]
[426883341,1782979411000,1035.84,0.00037097,120]
[426883344,1782979412000,1035.84,0.00037097,120]
[426883346,1782979412000,1035.84,0.00037097,120]
[426883345,1782979412000,1035.84,0.00037097,120]
[426883347,1782979412000,1035.84,0.00037097,120]
[426883350,1782979413000,1035.84,0.00037097,120]
[426883349,1782979413000,1035.84,0.00037097,120]
[426883348,1782979413000,1035.84,0.00037097,120]
[426883353,1782979414000,1035.93193357,0.00037097,120]
[426883352,1782979414000,1035.84,0.00037097,120]
[426883351,1782979414000,1035.84,0.00037097,120]
[426883354,1782979504000,150.0,0.00014549,2]
[426883362,1782979564000,30.06418922,0.00014549,2]
[426883417,1782979663000,-459.75483079,0.00014626,2]
[426883414,1782979663000,-150.0,0.00014113,2]
[426883416,1782979663000,-150.0,0.00014588,2]
[426883415,1782979663000,-119.93581078,0.00014549,2]
[426883420,1782979663000,-360.94,0.00014999,2]
[426883419,1782979663000,-786.03,0.00014999,2]
[426883421,1782979663000,-500.0,0.00014999,2]
[426883423,1782979663000,-1740.12866396,0.00015426,2]
[426883422,1782979663000,-171.28812351,0.00015327,2]
[426883418,1782979663000,-561.92257096,0.00014627,2]
[426883424,1782979670000,200.0,0.0001495,2]
[426883425,1782979678000,-4800.0,0.00015426,2]
[426883426,1782979685000,-1773.68872146,0.00015426,2]
[426883427,1782979685000,-300.0,0.00015426,2]
[426883428,1782979685000,-200.0,0.00015426,2]
[426883429,1782979685000,-500.0,0.00015426,2]
[426883432,1782979685000,-500.0,0.00015426,2]
[426883430,1782979685000,-500.0,0.00015426,2]
[426883431,1782979685000,-500.0,0.00015426,2]
[426883434,1782979685000,-226.31127854,0.00015426,2]
[426883433,1782979685000,-500.0,0.00015426,2]
[426883438,1782979687000,-500.0,0.00015426,2]
[426883435,1782979687000,-273.68872146,0.00015426,2]
[426883437,1782979687000,-500.0,0.00015426,2]
[426883436,1782979687000,-500.0,0.00015426,2]
[426883440,1782979687000,-500.0,0.00015426,2]
[426883444,1782979687000,-500.0,0.00015426,2]
[426883439,1782979687000,-500.0,0.00015426,2]
[426883442,1782979687000,-500.0,0.00015426,2]
[426883443,1782979687000,-500.0,0.00015426,2]
[426883445,1782979687000,-226.31127854,0.00015426,2]
[426883441,1782979687000,-500.0,0.00015426,2]
[426883446,1782979688000,-273.68872146,0.00015426,2]
[426883447,1782979688000,-500.0,0.00015426,2]
[426883448,1782979688000,-500.0,0.00015426,2]
[426883453,1782979688000,-500.0,0.00015426,2]
[426883449,1782979688000,-500.0,0.00015426,2]
[426883450,1782979688000,-500.0,0.00015426,2]
[426883452,1782979688000,-500.0,0.00015426,2]
[426883454,1782979688000,-500.0,0.00015426,2]
[426883456,1782979688000,-226.31127854,0.00015426,2]
[426883455,1782979688000,-500.0,0.00015426,2]
[426883451,1782979688000,-500.0,0.00015426,2]
[426883457,1782979689000,-273.68872146,0.00015426,2]
[426883460,1782979689000,-500.0,0.00015426,2]
[426883462,1782979689000,-500.0,0.00015426,2]
[426883461,1782979689000,-386.36161526,0.00015426,2]
[426883458,1782979689000,-500.0,0.00015426,2]
[426883463,1782979689000,-500.0,0.00015426,2]
[426883465,1782979689000,-500.0,0.00015426,2]
[426883466,1782979689000,-500.0,0.00015426,2]
[426883467,1782979689000,-339.94966328,0.00015426,2]
[426883464,1782979689000,-500.0,0.00015426,2]
[426883459,1782979689000,-500.0,0.00015426,2]
[426883468,1782979690000,-160.05033672,0.00015426,2]
[426883470,1782979690000,-500.0,0.00015426,2]
[426883469,1782979690000,-500.0,0.00015426,2]
[426883474,1782979690000,-527.79410408,0.00015426,2]
[426883472,1782979690000,-527.79410408,0.00015426,2]
[426883473,1782979690000,-527.79410408,0.00015426,2]
[426883475,1782979690000,-527.79410408,0.00015426,2]
[426883478,1782979690000,-145.39093472,0.00015426,2]
[426883477,1782979690000,-527.79410408,0.00015426,2]
[426883476,1782979690000,-527.79410408,0.00015426,2]
[426883471,1782979690000,-527.79410408,0.00015426,2]
[426883479,1782979691000,-382.40316936,0.00015426,2]
[426883480,1782979691000,-527.79410408,0.00015426,2]
[426883481,1782979691000,-527.79410408,0.00015426,2]
[426883485,1782979691000,-527.79410408,0.00015426,2]
[426883483,1782979691000,-527.79410408,0.00015426,2]
[426883484,1782979691000,-527.79410408,0.00015426,2]
[426883482,1782979691000,-527.79410408,0.00015426,2]
[426883492,1782979692000,-527.79410408,0.00015426,2]
[426883491,1782979692000,-527.79410408,0.00015426,2]
[426883490,1782979692000,-527.79410408,0.00015426,2]
[426883489,1782979692000,-132.55010608,0.00015426,2]
[426883488,1782979692000,-395.243998,0.00015426,2]
[426883486,1782979692000,-527.79410408,0.00015426,2]
[426883487,1782979692000,-527.79410408,0.00015426,2]
[426883494,1782979693000,-527.79410408,0.00015426,2]
[426883493,1782979693000,-527.79410408,0.00015426,2]
[426883495,1782979693000,-527.79410408,0.00015426,2]
[426883496,1782979693000,-527.79410408,0.00015426,2]
[426883497,1782979693000,-527.79410408,0.00015426,2]
[426883499,1782979693000,-117.3029572,0.00015426,2]
[426883500,1782979693000,-410.49114688,0.00015426,2]
[426883501,1782979693000,-527.79410408,0.00015426,2]
[426883498,1782979693000,-527.79410408,0.00015426,2]
[426883508,1782979694000,-527.79410408,0.00015426,2]
[426883509,1782979694000,-367.15602048,0.00015426,2]
[426883507,1782979694000,-527.79410408,0.00015426,2]
[426883506,1782979694000,-527.79410408,0.00015426,2]
[426883504,1782979694000,-527.79410408,0.00015426,2]
[426883505,1782979694000,-527.79410408,0.00015426,2]
[426883503,1782979694000,-527.79410408,0.00015426,2]
[426883502,1782979694000,-527.79410408,0.00015426,2]
[426883512,1782979696000,-507.30327415,0.00015426,2]
[426883513,1782979696000,-507.30327415,0.00015426,2]
[426883510,1782979696000,-140.14725367,0.00015426,2]
[426883514,1782979696000,-507.30327415,0.00015426,2]
[426883511,1782979696000,-507.30327415,0.00015426,2]
[426883515,1782979696000,-507.30327415,0.00015426,2]
[426883519,1782979696000,-507.30327415,0.00015426,2]
[426883520,1782979696000,-294.12327898,0.00015426,2]
[426883516,1782979696000,-507.30327415,0.00015426,2]
[426883517,1782979696000,-507.30327415,0.00015426,2]
[426883518,1782979696000,-507.30327415,0.00015426,2]
[426883522,1782979703000,-289.89113001,0.00014627,2]
[426883525,1782979703000,-507.30327415,0.00015426,2]
[426883524,1782979703000,-507.30327415,0.00015426,2]
[426883521,1782979703000,-354.31138113,0.00014627,2]
[426883528,1782979703000,-507.30327415,0.00015426,2]
[426883526,1782979703000,-507.30327415,0.00015426,2]
[426883529,1782979703000,-507.30327407,0.00015426,2]
[426883530,1782979703000,-1098.79784887,0.00015427,2]
[426883527,1782979703000,-507.30327415,0.00015426,2]
[426883523,1782979703000,-213.17999517,0.00015426,2]
[426883531,1782979723000,-5000.0,0.00015427,2]
[426883532,1782979724000,-5000.0,0.00015427,2]
[426883534,1782979725000,-5000.0,0.00015427,2]
[426883533,1782979725000,-5000.0,0.00015427,2]
[426883535,1782979726000,-5000.0,0.00015427,2]
[426883536,1782979727000,-5000.0,0.00015427,2]
[426883537,1782979728000,-639.03363303,0.00015427,2]
[426883538,1782979728000,-2265.2828764,0.00015427,2]
[426883539,1782979728000,-2095.68349057,0.00015427,2]
[426883540,1782979729000,-5000.0,0.00015427,2]
[426883541,1782979730000,-5000.0,0.00015427,2]
[426883542,1782979731000,-5000.0,0.00015427,2]
[426883543,1782979732000,-5000.0,0.00015427,2]
[426883544,1782979747000,-1263.92788124,0.00015427,2]
[426883576,1782979832000,-151.0,0.00021999,2]
[426883566,1782979832000,-190.28404923,0.00019588,2]
[426883571,1782979832000,-3018.4324654,0.00021112,2]
[426883573,1782979832000,-5000.0,0.00021918,2]
[426883579,1782979832000,-151.0,0.00021999,2]
[426883590,1782979832000,-200.8224883,0.00021999,2]
[426883580,1782979832000,-151.0,0.00021999,2]
[426883583,1782979832000,-151.0,0.00021999,2]
[426883581,1782979832000,-151.0,0.00021999,2]
[426883578,1782979832000,-151.0,0.00021999,2]
[426883584,1782979832000,-151.0,0.00021999,2]
[426883574,1782979832000,-457.57452108,0.00021918,2]
[426883585,1782979832000,-151.0,0.00021999,2]
[426883586,1782979832000,-151.0,0.00021999,2]
[426883587,1782979832000,-151.0,0.00021999,2]
[426883597,1782979832000,-181.0,0.00022111,2]
[426883605,1782979832000,-14477.82638772,0.00022276,2]
[426883603,1782979832000,-1852.42,0.00022237,2]
[426883582,1782979832000,-151.0,0.00021999,2]
[426883569,1782979832000,-4558.4453,0.00020548,2]
[426883565,1782979832000,-159.89119307,0.00016438,2]
[426883575,1782979832000,-151.0,0.00021999,2]
[426883600,1782979832000,-943.8678651,0.00022112,2]
[426883552,1782979832000,-274.63898139,0.00015326,2]
[426883551,1782979832000,-150.0,0.00014964,2]
[426883553,1782979832000,-244.20046731,0.00015326,2]
[426883555,1782979832000,-528.0415,0.00015426,2]
[426883554,1782979832000,-32.48542269,0.00015426,2]
[426883564,1782979832000,-200.0,0.00016053,2]
[426883563,1782979832000,-200.0,0.00015894,2]
[426883572,1782979832000,-1848.57,0.00021536,2]
[426883556,1782979832000,-2268.83884728,0.00015426,2]
[426883558,1782979832000,-200.0,0.00015427,2]
[426883560,1782979832000,-532.66455272,0.00015638,2]
[426883559,1782979832000,-200.0,0.00015581,2]
[426883561,1782979832000,-200.0,0.00015737,2]
[426883562,1782979832000,-360.94,0.00015749,2]
[426883567,1782979832000,-500.0,0.00020503,2]
[426883577,1782979832000,-151.0,0.00021999,2]
[426883568,1782979832000,-1780.12,0.00020546,2]
[426883557,1782979832000,-1520.45880789,0.00015427,2]
[426883592,1782979832000,-1706.62,0.00022,2]
[426883570,1782979832000,-160.0,0.00020838,2]
[426883594,1782979832000,-2887.78,0.00022044,2]
[426883650,1782979832000,-184.08693901,0.00023495,2]
[426883641,1782979832000,-170.83,0.00023234,2]
[426883639,1782979832000,-14477.82638768,0.00023133,2]
[426883652,1782979832000,-1270.79,0.00023555,7]
[426883656,1782979832000,-3140.72513395,0.0002399,2]
[426883642,1782979832000,-155.22,0.00023378,2]
[426883644,1782979832000,-4345.24,0.0002345,2]
[426883654,1782979832000,-4331.88478179,0.00023765,2]
[426883667,1782979832000,-2138.37,0.00024124,2]
[426883658,1782979832000,-11337.10125373,0.0002399,2]
[426883669,1782979832000,-7905.59,0.00024174,2]
[426883671,1782979832000,-715.94,0.00024174,2]
[426883672,1782979832000,-150.99,0.00024174,2]
[426883670,1782979832000,-3051.86,0.00024174,2]
[426883660,1782979832000,-189.0,0.00024,2]
[426883662,1782979832000,-177.0,0.00024,2]
[426883664,1782979832000,-160.592603,0.00024,2]
[426883665,1782979832000,-1180.52,0.00024054,2]
[426883596,1782979832000,-200.0,0.00022067,2]
[426883637,1782979832000,-169.58,0.00023064,2]
[426883648,1782979832000,-1180.52,0.00023495,2]
[426883668,1782979832000,-439.74,0.00024174,2]
[426883635,1782979832000,-6256.17443569,0.0002299,2]
[426883646,1782979832000,-212.92,0.00023472,2]
[426883608,1782979832000,-161.66,0.00022363,2]
[426883602,1782979832000,-200.0,0.0002218,2]
[426883601,1782979832000,-24880.0701797,0.00022112,2]
[426883606,1782979832000,-166.6,0.00022282,2]
[426883609,1782979832000,-1180.52,0.00022376,2]
[426883619,1782979832000,-163.9,0.00022684,2]
[426883621,1782979832000,-3104.82,0.00022684,2]
[426883611,1782979832000,-1731.21,0.00022466,2]
[426883598,1782979832000,-31737.8314819,0.00022112,2]
[426883625,1782979832000,-1497.06667156,0.00022755,2]
[426883615,1782979832000,-1310.83,0.0002248,2]
[426883629,1782979832000,-846.7,0.00022893,2]
[426883613,1782979832000,-150.0,0.00022469,2]
[426883617,1782979832000,-300.57,0.00022494,2]
[426883627,1782979832000,-172.36,0.00022853,2]
[426883631,1782979832000,-1180.52,0.00022935,2]
[426883633,1782979832000,-14282.10556431,0.0002299,2]
[426883623,1782979832000,-150.0,0.00022698,2]
[426883666,1782979832000,-454.45,0.0002411,2]
[426883698,1782979833000,-15793.86,0.00025,2]
[426883687,1782979833000,-152.61433426,0.00024967,2]
[426883690,1782979833000,-753.28,0.00024999,2]
[426883691,1782979833000,-50000.0,0.00025,2]
[426883697,1782979833000,-3537.58,0.00025,2]
[426883689,1782979833000,-501.27830051,0.00024999,2]
[426883696,1782979833000,-5306.87,0.00025,2]
[426883693,1782979833000,-25665.19,0.00025,2]
[426883692,1782979833000,-9886.77,0.00025,2]
[426883680,1782979833000,-205.94709733,0.00024747,2]
[426883688,1782979833000,-500.0,0.00024999,2]
[426883678,1782979833000,-154.46,0.00024658,2]
[426883679,1782979833000,-154.57,0.00024658,2]
[426883677,1782979833000,-1000.0,0.00024658,2]
[426883683,1782979833000,-44209.33375939,0.00024886,2]
[426883676,1782979833000,-176.3,0.00024658,2]
[426883674,1782979833000,-1180.52,0.00024614,2]
[426883686,1782979833000,-166.67,0.00024941,2]
[426883681,1782979833000,-368.17387802,0.00024747,2]
[426883682,1782979833000,-14477.82638768,0.00024847,2]
[426883685,1782979833000,-2683.32320731,0.000249,2]
[426883675,1782979833000,-245.71,0.00024658,2]
[426883673,1782979833000,-641.27190156,0.0002441,2]
[426883695,1782979833000,-12384.04,0.00025,2]
[426883684,1782979833000,-375.42862673,0.00024886,2]
[426883694,1782979833000,-17109.79,0.00025,2]
[426883701,1782979833000,-189.0,0.00025,2]
[426883700,1782979833000,-4511.82,0.00025,2]
[426883699,1782979833000,-6768.23,0.00025,2]
[426883722,1782979833000,-216.6671885,0.000258,2]
[426883723,1782979833000,-150.0,0.00025968,5]
[426883724,1782979833000,-189.19586709,0.00025977,2]
[426883721,1782979833000,-415.76100778,0.00025704,2]
[426883725,1782979833000,-274.85593663,0.00025997,2]
[426883718,1782979833000,-212.54917067,0.00025582,2]
[426883716,1782979833000,-411.89419466,0.00025581,2]
[426883719,1782979833000,-189.19586709,0.00025703,2]
[426883717,1782979833000,-552.26081703,0.00025582,2]
[426883714,1782979833000,-481.73,0.00025553,2]
[426883715,1782979833000,-188.53080893,0.00025579,2]
[426883720,1782979833000,-14062.0653799,0.00025704,2]
[426883713,1782979833000,-189.19586709,0.00025429,2]
[426883707,1782979833000,-500.0,0.00025155,2]
[426883708,1782979833000,-1500.0,0.00025155,2]
[426883702,1782979833000,-200.2142753,0.00025,2]
[426883706,1782979833000,-1500.0,0.00025155,2]
[426883705,1782979833000,-189.19586709,0.00025155,2]
[426883710,1782979833000,-1500.0,0.00025155,2]
[426883703,1782979833000,-177.0,0.00025,2]
[426883704,1782979833000,-363.74,0.0002506,7]
[426883709,1782979833000,-1500.0,0.00025155,2]
[426883711,1782979833000,-1500.0,0.00025155,2]
[426883712,1782979833000,-271.86427948,0.00025267,2]
[426883771,1782979838000,-368.49119015,0.00026135,2]
[426883766,1782979838000,-366.77494221,0.00026135,2]
[426883768,1782979838000,-179.81985592,0.00026135,2]
[426883776,1782979838000,-440.40311146,0.00026138,2]
[426883775,1782979838000,-406.62128354,0.00026138,2]
[426883772,1782979838000,-377.06161787,0.00026135,2]
[426883773,1782979838000,-313.51053462,0.00026135,2]
[426883767,1782979838000,-361.71706959,0.00026135,2]
[426883774,1782979838000,-392.10498283,0.00026138,2]
[426883769,1782979838000,-395.04564656,0.00026135,2]
[426883788,1782979838000,-406.50788367,0.00026138,2]
[426883764,1782979838000,-167.52780625,0.00026135,2]
[426883770,1782979838000,-167.49131498,0.00026135,2]
[426883765,1782979838000,-337.37375833,0.00026135,2]
[426883751,1782979838000,-2275.67744434,0.00025997,2]
[426883763,1782979838000,-169.48591583,0.00026135,2]
[426883760,1782979838000,-431.38476967,0.00026135,2]
[426883761,1782979838000,-231.75465955,0.00026135,2]
[426883755,1782979838000,-0.3303626,0.0002603,14]
[426883757,1782979838000,-313.75617406,0.00026135,2]
[426883758,1782979838000,-384.80957959,0.00026135,2]
[426883756,1782979838000,-211.5378304,0.0002603,14]
[426883759,1782979838000,-319.80551305,0.00026135,2]
[426883753,1782979838000,-177.0,0.00026,2]
[426883754,1782979838000,-324.61,0.00026027,7]
[426883752,1782979838000,-189.0,0.00026,2]
[426883748,1782979838000,-132.78982631,0.00025997,2]
[426883747,1782979838000,-161.87,0.00024658,2]
[426883778,1782979838000,-157.81024348,0.00026138,2]
[426883762,1782979838000,-428.04263791,0.00026135,2]
[426883789,1782979838000,-736.34775604,0.00026139,2]
[426883796,1782979838000,-425.09834133,0.00026139,2]
[426883787,1782979838000,-427.51082192,0.00026138,2]
[426883777,1782979838000,-397.42917539,0.00026138,2]
[426883812,1782979838000,-389.32312025,0.00026453,2]
[426883810,1782979838000,-370.74170384,0.00026453,2]
[426883808,1782979838000,-483.55268998,0.00026161,14]
[426883809,1782979838000,-189.19586709,0.00026251,2]
[426883806,1782979838000,-307.19695265,0.00026161,14]
[426883807,1782979838000,-327.14492841,0.00026161,14]
[426883805,1782979838000,-160.73161154,0.00026139,2]
[426883804,1782979838000,-304.63168673,0.00026139,2]
[426883802,1782979838000,-177.4123005,0.00026139,2]
[426883803,1782979838000,-388.38969193,0.00026139,2]
[426883798,1782979838000,-302.93218442,0.00026139,2]
[426883799,1782979838000,-360.18773848,0.00026139,2]
[426883794,1782979838000,-311.31750956,0.00026139,2]
[426883811,1782979838000,-129.25829616,0.00026453,2]
[426883793,1782979838000,-218.47797966,0.00026139,2]
[426883791,1782979838000,-393.56554576,0.00026139,2]
[426883781,1782979838000,-358.2212488,0.00026138,2]
[426883779,1782979838000,-449.80253241,0.00026138,2]
[426883785,1782979838000,-285.47829186,0.00026138,2]
[426883780,1782979838000,-428.36079753,0.00026138,2]
[426883782,1782979838000,-314.49866899,0.00026138,2]
[426883784,1782979838000,-339.96397921,0.00026138,2]
[426883790,1782979838000,-267.79038048,0.00026139,2]
[426883792,1782979838000,-293.52280167,0.00026139,2]
[426883786,1782979838000,-265.16606462,0.00026138,2]
[426883801,1782979838000,-313.90623354,0.00026139,2]
[426883783,1782979838000,-617.84129199,0.00026138,2]
[426883795,1782979838000,-431.70557937,0.00026139,2]
[426883800,1782979838000,-353.29054109,0.00026139,2]
[426883846,1782979839000,-753.28,0.00026799,2]
[426883843,1782979839000,-753.28,0.00026799,2]
[426883845,1782979839000,-753.28,0.00026799,2]
[426883856,1782979839000,-500.0,0.00026799,2]
[426883852,1782979839000,-500.0,0.00026799,2]
[426883851,1782979839000,-753.28,0.00026799,2]
[426883848,1782979839000,-753.28,0.00026799,2]
[426883850,1782979839000,-753.28,0.00026799,2]
[426883855,1782979839000,-500.0,0.00026799,2]
[426883854,1782979839000,-500.0,0.00026799,2]
[426883853,1782979839000,-500.0,0.00026799,2]
[426883844,1782979839000,-753.28,0.00026799,2]
[426883859,1782979839000,-500.0,0.00026799,2]
[426883849,1782979839000,-753.28,0.00026799,2]
[426883858,1782979839000,-500.0,0.00026799,2]
[426883857,1782979839000,-500.0,0.00026799,2]
[426883863,1782979839000,-500.0,0.00026799,2]
[426883864,1782979839000,-189.19586709,0.00026799,2]
[426883865,1782979839000,-684.0,0.000268,5]
[426883860,1782979839000,-500.0,0.00026799,2]
[426883861,1782979839000,-500.0,0.00026799,2]
[426883866,1782979839000,-2423285.92674671,0.000268,2]
[426883867,1782979839000,-271.73,0.000268,7]
[426883838,1782979839000,-1130.55320218,0.0002679,2]
[426883862,1782979839000,-500.0,0.00026799,2]
[426883847,1782979839000,-753.28,0.00026799,2]
[426883837,1782979839000,-2133.9749315,0.000267,2]
[426883825,1782979839000,-200.0,0.000266,9]
[426883835,1782979839000,-180.86328756,0.000267,2]
[426883868,1782979839000,-662.0,0.000268,5]
[426883814,1782979839000,-500.0,0.00026453,2]
[426883816,1782979839000,-368.02908544,0.00026453,2]
[426883818,1782979839000,-500.0,0.00026453,2]
[426883813,1782979839000,-110.67687975,0.00026453,2]
[426883817,1782979839000,-10.78892834,0.00026453,2]
[426883820,1782979839000,-500.0,0.00026453,2]
[426883819,1782979839000,-500.0,0.00026453,2]
[426883823,1782979839000,-14477.82638768,0.00026562,2]
[426883821,1782979839000,-1197.64,0.000265,7]
[426883826,1782979839000,-1430.16669389,0.00026661,14]
[426883822,1782979839000,-189.19586709,0.00026525,2]
[426883824,1782979839000,-350.0,0.00026592,8]
[426883828,1782979839000,-18177.8945,0.000267,2]
[426883829,1782979839000,-860.55972572,0.000267,2]
[426883827,1782979839000,-172.36,0.00026662,2]
[426883831,1782979839000,-500.0,0.000267,9]
[426883839,1782979839000,-1001.94,0.00026799,7]
[426883834,1782979839000,-844.14183766,0.000267,2]
[426883833,1782979839000,-4755.09286922,0.000267,2]
[426883842,1782979839000,-753.28,0.00026799,2]
[426883841,1782979839000,-470.33332227,0.00026799,2]
[426883830,1782979839000,-1598.05583884,0.000267,2]
[426883840,1782979839000,-500.0,0.00026799,2]
[426883832,1782979839000,-193.07448292,0.000267,2]
[426883836,1782979839000,-224.44696038,0.000267,2]
[426883869,1782979839000,-672.0,0.000268,5]
[426883915,1782979839000,-10382.73712563,0.000277,2]
[426883870,1782979839000,-1031.34,0.000268,7]
[426883902,1782979839000,-2816.56115103,0.000275,2]
[426883900,1782979839000,-1419.18258688,0.000275,2]
[426883904,1782979839000,-277.58874476,0.00027507,2]
[426883908,1782979839000,-1000.4,0.00027604,7]
[426883909,1782979839000,-686.0,0.00027608,2]
[426883907,1782979839000,-971.88,0.00027603,7]
[426883905,1782979839000,-160.0,0.00027565,2]
[426883906,1782979839000,-500.0,0.00027598,60]
[426883910,1782979839000,-189.19586709,0.00027621,2]
[426883911,1782979839000,-196.60447268,0.00027633,5]
[426883913,1782979839000,-883.62,0.000277,14]